Workbook

Sheet Feuil1
A1: Zones Modifiables : | E1: Données | F1: f1 | G1: f2 | H1: f3 | I1: f4 | J1: f5 | K1: f6
A2: Les autres pas toucher | E2: a1 | F2: 80 | G2: 90 | H2: 600 | I2: 5.4 | J2: 8 | K2: 5
E3: a2 | F3: 65 | G3: 58 | H3: 200 | I3: 9.7 | J3: 1 | K3: 1
E4: a3 | F4: 83 | G4: 60 | H4: 400 | I4: 7.2 | J4: 4 | K4: 7
E5: a4 | F5: 40 | G5: 80 | H5: 1000 | I5: 7.5 | J5: 7 | K5: 10
E6: a5 | F6: 52 | G6: 72 | H6: 600 | I6: 2 | J6: 3 | K6: 8
A7: Pour "jouer" avec le cas modifier a1, a2 | E7: a6 | F7: 94 | G7: 96 | H7: 700 | I7: 3.6 | J7: 5 | K7: 6
A8: par les alternatives souhaitées | D8: =7/8 -> 0.875
G9: ="π ("&G10&","&G11&")" -> π (a1,a2) | H9: ="π ("&H10&","&H11&")" -> π (a2,a1)
A10: Par ex. saisir a3 au lieu de a1 | F10: Param1 | G10: a1 | H10: =G11 -> a2
G11: a2 | H11: =G10 -> a1
B12: Type fonction | C12: param1 | D12: param2 | E12: Optimum | F12: Poids | G12: P(a,b) Critéres | H12: ="Pj("&G10& "," &G11&")" -> Pj(a1,a2) | I12: ="Pj("&H10& "," &H11&")" -> Pj(a2,a1) | L12: Traduction min/max => param | M12: Correspondance Tableau criteres
B13: II | C13: 10 | E13: min | F13: 1 | G13: f1 | H13: =preferenceF($B13,VLOOKUP($G$10,Data,VLOOKUP($G13,_xlnm.Criteria,2,FALSE),FALSE),VLOOKUP($G$11,Data,VLOOKUP($G13,_xlnm.Criteria,2,FALSE),FALSE),$C13,$D13,$L13) -> 0.000 | I13: =preferenceF($B13,VLOOKUP($H$10,Data,VLOOKUP($G13,_xlnm.Criteria,2,FALSE),FALSE),VLOOKUP($H$11,Data,VLOOKUP($G13,_xlnm.Criteria,2,FALSE),FALSE),$C13,$D13,$L13) -> 1.000 | L13: =IF(E13="min",-1,1) -> -1 | M13: f1 | N13: 2
B14: III | C14: 30 | E14: max | F14: 1 | G14: f2 | H14: =preferenceF($B14,VLOOKUP($G$10,Data,VLOOKUP($G14,_xlnm.Criteria,2,FALSE),FALSE),VLOOKUP($G$11,Data,VLOOKUP($G14,_xlnm.Criteria,2,FALSE),FALSE),$C14,$D14,$L14) -> 1.000 | I14: =preferenceF($B14,VLOOKUP($H$10,Data,VLOOKUP($G14,_xlnm.Criteria,2,FALSE),FALSE),VLOOKUP($H$11,Data,VLOOKUP($G14,_xlnm.Criteria,2,FALSE),FALSE),$C14,$D14,$L14) -> 0.000 | L14: =IF(E14="min",-1,1) -> 1 | M14: f2 | N14: 3
B15: V | C15: 50 | D15: 500 | E15: min | F15: 1 | G15: f3 | H15: =preferenceF($B15,VLOOKUP($G$10,Data,VLOOKUP($G15,_xlnm.Criteria,2,FALSE),FALSE),VLOOKUP($G$11,Data,VLOOKUP($G15,_xlnm.Criteria,2,FALSE),FALSE),$C15,$D15,$L15) -> 0.000 | I15: =preferenceF($B15,VLOOKUP($H$10,Data,VLOOKUP($G15,_xlnm.Criteria,2,FALSE),FALSE),VLOOKUP($H$11,Data,VLOOKUP($G15,_xlnm.Criteria,2,FALSE),FALSE),$C15,$D15,$L15) -> 0.778 | L15: -1 | M15: f3 | N15: 4
B16: IV | C16: 1 | D16: 6 | E16: min | F16: 1 | G16: f4 | H16: =preferenceF($B16,VLOOKUP($G$10,Data,VLOOKUP($G16,_xlnm.Criteria,2,FALSE),FALSE),VLOOKUP($G$11,Data,VLOOKUP($G16,_xlnm.Criteria,2,FALSE),FALSE),$C16,$D16,$L16) -> 0.500 | I16: =preferenceF($B16,VLOOKUP($H$10,Data,VLOOKUP($G16,_xlnm.Criteria,2,FALSE),FALSE),VLOOKUP($H$11,Data,VLOOKUP($G16,_xlnm.Criteria,2,FALSE),FALSE),$C16,$D16,$L16) -> 0.000 | L16: -1 | M16: f4 | N16: 5
B17: I | E17: min | F17: 1 | G17: f5 | H17: =preferenceF($B17,VLOOKUP($G$10,Data,VLOOKUP($G17,_xlnm.Criteria,2,FALSE),FALSE),VLOOKUP($G$11,Data,VLOOKUP($G17,_xlnm.Criteria,2,FALSE),FALSE),$C17,$D17,$L17) -> 0.000 | I17: =preferenceF($B17,VLOOKUP($H$10,Data,VLOOKUP($G17,_xlnm.Criteria,2,FALSE),FALSE),VLOOKUP($H$11,Data,VLOOKUP($G17,_xlnm.Criteria,2,FALSE),FALSE),$C17,$D17,$L17) -> 1.000 | L17: -1 | M17: f5 | N17: 6
B18: VI | C18: 5 | E18: max | F18: 1 | G18: f6 | H18: =preferenceF($B18,VLOOKUP($G$10,Data,VLOOKUP($G18,_xlnm.Criteria,2,FALSE),FALSE),VLOOKUP($G$11,Data,VLOOKUP($G18,_xlnm.Criteria,2,FALSE),FALSE),$C18,$D18,$L18) -> 0.274 | I18: =preferenceF($B18,VLOOKUP($H$10,Data,VLOOKUP($G18,_xlnm.Criteria,2,FALSE),FALSE),VLOOKUP($H$11,Data,VLOOKUP($G18,_xlnm.Criteria,2,FALSE),FALSE),$C18,$D18,$L18) -> 0.000 | L18: 1 | M18: f6 | N18: 7
G20: Somme | H20: =H13*$F$13+H14*$F$14+H15*$F$15+H16*$F$16+H17*$F$17+H18*$F$18 -> 1.774 | I20: =I13*$F$13+I14*$F$14+I15*$F$15+I16*$F$16+I17*$F$17+I18*$F$18 -> 2.778
F21: /6 | G21: π (a,b) | H21: =H20/SUM(F13:F18) -> 0.296 | I21: =I20/6 -> 0.463
G23: Cible | H23: =VLOOKUP(G10,DataCheck,VALUE(MID(G11,2,1))+1,FALSE) -> 0.3 | I23: =VLOOKUP(H10,DataCheck,VALUE(MID(H11,2,1))+1,FALSE) -> 0.46 | K23: 0.296 | L23: 0.462
G24: Delta | H24: =H23-H21 -> 0.004358172846 | I24: =I23-I21 -> -0.002962962963
D25: ="Si <précision ("&H26& ") on dit que c'est bon" -> Si <précision (0,01) on dit que c'est bon | H25: =IF(ABS(H24)<$H$26,"Yeah","OhOh") -> Yeah | I25: =IF(ABS(I24)<$H$26,"Yeah","OhOh") -> Yeah
G26: Précision | H26: 0.01
E28: Check | F28: a1 | G28: a2 | H28: a3 | I28: a4 | J28: a5 | K28: a6
E29: a1 | G29: 0.3 | H29: 0.25 | I29: 0.27 | J29: 0.1 | K29: 0.19
E30: a2 | F30: 0.46 | H30: 0.39 | I30: 0.33 | J30: 0.3 | K30: 0.5
E31: a3 | F31: 0.24 | G31: 0.18 | I31: 0.333 | J31: 0.06 | K31: 0.43
E32: a4 | F32: 0.4 | G32: 0.51 | H32: 0.31 | I32: 0 | J32: 0.22 | K32: 0.21
E33: a5 | F33: 0.44 | G33: 0.52 | H33: 0.49 | I33: 0.38 | K33: 0.45
E34: a6 | F34: 0.29 | G34: 0.4 | H34: 0.25 | I34: 0.43 | J34: 0.13
B46: II
